[Event "Late-Titled-Tuesday-Blitz-August-29-2023"]
[Site "Chess.com"]
[Date "2023.08.29"]
[Round "7"]
[White "SergioMoralesG"]
[Black "Chemim21"]
[Result "0-1"]
[WhiteElo "2412"]
[BlackElo "2300"]
[TimeControl "180+1"]
[EndTime "15:16:12 PDT"]
[Termination "Chemim21 won on time"]

1. d4 {[%clk 0:03:00.9]} 1... d5 {[%clk 0:02:59.3]} 2. c4 {[%clk 0:02:59.6]}
2... e6 {[%clk 0:02:59.7]} 3. Nf3 {[%clk 0:02:59.5]} 3... c6 {[%clk 0:03:00]} 4.
e3 {[%clk 0:02:58.8]} 4... Nf6 {[%clk 0:02:59.3]} 5. Nc3 {[%clk 0:02:57.7]} 5...
Nbd7 {[%clk 0:02:58.6]} 6. Qc2 {[%clk 0:02:57.7]} 6... dxc4 {[%clk 0:02:58.2]}
7. Bxc4 {[%clk 0:02:57.2]} 7... b5 {[%clk 0:02:58.8]} 8. Bd3 {[%clk 0:02:57.1]}
8... a6 {[%clk 0:02:59.1]} 9. e4 {[%clk 0:02:56.1]} 9... Bb7 {[%clk 0:02:55.4]}
10. O-O {[%clk 0:02:51.9]} 10... c5 {[%clk 0:02:54]} 11. e5 {[%clk 0:02:47.1]}
11... Bxf3 {[%clk 0:02:29.3]} 12. gxf3 {[%clk 0:02:39.1]} 12... cxd4 {[%clk
0:02:19.2]} 13. Nxb5 {[%clk 0:02:27.7]} 13... axb5 {[%clk 0:02:18.5]} 14. exf6
{[%clk 0:02:25.3]} 14... gxf6 {[%clk 0:02:14.1]} 15. Bxb5 {[%clk 0:02:14.9]}
15... Rb8 {[%clk 0:01:48.5]} 16. a4 {[%clk 0:02:02.8]} 16... Bd6 {[%clk
0:01:43.5]} 17. Qc6 {[%clk 0:01:50.4]} 17... Qc7 {[%clk 0:01:30.9]} 18. f4
{[%clk 0:01:30.9]} 18... Qxc6 {[%clk 0:01:25.7]} 19. Bxc6 {[%clk 0:01:30.7]}
19... Ke7 {[%clk 0:01:26.5]} 20. a5 {[%clk 0:01:19]} 20... Rhg8+ {[%clk
0:01:24]} 21. Kh1 {[%clk 0:01:17.8]} 21... Rgc8 {[%clk 0:01:23.3]} 22. Bg2
{[%clk 0:01:16.1]} 22... Rc2 {[%clk 0:01:22.3]} 23. a6 {[%clk 0:01:13.2]} 23...
d3 {[%clk 0:01:05]} 24. a7 {[%clk 0:01:07.2]} 24... d2 {[%clk 0:00:57]} 25.
axb8=Q {[%clk 0:00:57.6]} 25... Bxb8 {[%clk 0:00:56.8]} 26. Rd1 {[%clk
0:00:20.4]} 26... Bxf4 {[%clk 0:00:52.5]} 27. Bxd2 {[%clk 0:00:15.5]} 27... Bxd2
{[%clk 0:00:52.3]} 28. Ra7 {[%clk 0:00:14.4]} 28... Kd6 {[%clk 0:00:50.3]} 29.
Be4 {[%clk 0:00:11.2]} 29... Rxb2 {[%clk 0:00:48.4]} 30. Kg2 {[%clk 0:00:11.4]}
30... f5 {[%clk 0:00:47.9]} 31. Bf3 {[%clk 0:00:11.2]} 31... Ne5 {[%clk
0:00:47.8]} 32. Be2 {[%clk 0:00:09.9]} 32... f4 {[%clk 0:00:36.2]} 33. Kf1
{[%clk 0:00:09]} 33... f3 {[%clk 0:00:35.2]} 34. Ba6 {[%clk 0:00:03.7]} 34...
Ng4 {[%clk 0:00:32.2]} 35. Kg1 {[%clk 0:00:02.8]} 35... Ke5 {[%clk 0:00:30.5]}
36. Bd3 {[%clk 0:00:02.1]} 36... Bf4 {[%clk 0:00:29]} 37. Ra5+ {[%clk
0:00:01.5]} 37... Kf6 {[%clk 0:00:28.7]} 38. h3 {[%clk 0:00:01.2]} 38... Nxf2
{[%clk 0:00:28.8]} 0-1

[Event "Late-Titled-Tuesday-Blitz-August-29-2023"]
[Site "Chess.com"]
[Date "2023.08.29"]
[Round "7"]
[White "ilya2700"]
[Black "Ajedrez_con_German"]
[Result "0-1"]
[WhiteElo "2137"]
[BlackElo "2667"]
[TimeControl "180+1"]
[EndTime "15:16:15 PDT"]
[Termination "Ajedrez_con_German won on time"]

1. c4 {[%clk 0:03:00.9]} 1... c6 {[%clk 0:02:51.1]} 2. d4 {[%clk 0:02:57.7]}
2... d5 {[%clk 0:02:50.6]} 3. Nf3 {[%clk 0:02:57]} 3... Nf6 {[%clk 0:02:49.3]}
4. Nc3 {[%clk 0:02:54.8]} 4... g6 {[%clk 0:02:39.3]} 5. cxd5 {[%clk 0:02:50.8]}
5... cxd5 {[%clk 0:02:37.6]} 6. h4 {[%clk 0:02:47.1]} 6... Bg7 {[%clk
0:02:36.7]} 7. Bf4 {[%clk 0:02:37.5]} 7... a6 {[%clk 0:02:35.2]} 8. e3 {[%clk
0:02:33.4]} 8... Nc6 {[%clk 0:02:34.4]} 9. Ne5 {[%clk 0:02:30.3]} 9... O-O
{[%clk 0:02:30.2]} 10. Bd3 {[%clk 0:02:18.5]} 10... Bd7 {[%clk 0:02:21.8]} 11.
h5 {[%clk 0:02:11.2]} 11... Nxh5 {[%clk 0:02:11.1]} 12. Rxh5 {[%clk 0:02:08.9]}
12... gxh5 {[%clk 0:02:11.5]} 13. Qxh5 {[%clk 0:01:44.6]} 13... f5 {[%clk
0:02:11.2]} 14. Nxd5 {[%clk 0:01:35.6]} 14... Nxe5 {[%clk 0:02:11]} 15. Bxe5
{[%clk 0:01:26.7]} 15... e6 {[%clk 0:01:52.5]} 16. Bxg7 {[%clk 0:00:58.4]} 16...
Kxg7 {[%clk 0:01:51.8]} 17. Nf4 {[%clk 0:00:58.3]} 17... Qe8 {[%clk 0:01:31.6]}
18. Qg5+ {[%clk 0:00:55.6]} 18... Kh8 {[%clk 0:01:31.6]} 19. Ke2 {[%clk
0:00:45.9]} 19... Qf7 {[%clk 0:01:15.1]} 20. Rh1 {[%clk 0:00:42]} 20... Rg8
{[%clk 0:01:15.5]} 21. Qh4 {[%clk 0:00:26.7]} 21... Bb5 {[%clk 0:01:07]} 22.
Nxe6 {[%clk 0:00:19]} 22... Bxd3+ {[%clk 0:01:06.8]} 23. Kxd3 {[%clk 0:00:19.9]}
23... Rac8 {[%clk 0:00:42.7]} 24. b3 {[%clk 0:00:15.7]} 24... f4 {[%clk
0:00:25.9]} 25. e4 {[%clk 0:00:11.4]} 25... Rg6 {[%clk 0:00:11.5]} 26. Ng5
{[%clk 0:00:09.4]} 26... Qc7 {[%clk 0:00:08.3]} 27. Qxh7+ {[%clk 0:00:07.1]}
27... Qxh7 {[%clk 0:00:08.5]} 28. Nxh7 {[%clk 0:00:03.5]} 28... Rxg2 {[%clk
0:00:08.4]} 29. f3 {[%clk 0:00:03.3]} 29... Rf2 {[%clk 0:00:07.4]} 30. Ng5+
{[%clk 0:00:01.5]} 30... Kg8 {[%clk 0:00:07.3]} 0-1

[Event "Late-Titled-Tuesday-Blitz-August-29-2023"]
[Site "Chess.com"]
[Date "2023.08.29"]
[Round "7"]
[White "ZuraTqebuchava"]
[Black "GMMikhailKazakov"]
[Result "1-0"]
[WhiteElo "2162"]
[BlackElo "2327"]
[TimeControl "180+1"]
[EndTime "15:16:15 PDT"]
[Termination "ZuraTqebuchava won by checkmate"]

1. e4 {[%clk 0:03:00.4]} 1... e5 {[%clk 0:02:53.4]} 2. Nf3 {[%clk 0:03:00.1]}
2... Nc6 {[%clk 0:02:51.6]} 3. Bb5 {[%clk 0:03:00]} 3... a6 {[%clk 0:02:46.2]}
4. Ba4 {[%clk 0:02:58.1]} 4... Nf6 {[%clk 0:02:44.9]} 5. O-O {[%clk 0:02:58.5]}
5... Be7 {[%clk 0:02:43.3]} 6. Re1 {[%clk 0:02:57.7]} 6... b5 {[%clk 0:02:42.9]}
7. Bb3 {[%clk 0:02:57.4]} 7... O-O {[%clk 0:02:42.2]} 8. c3 {[%clk 0:02:56.4]}
8... d6 {[%clk 0:02:41.5]} 9. h3 {[%clk 0:02:56.1]} 9... Na5 {[%clk 0:02:39.1]}
10. Bc2 {[%clk 0:02:52.8]} 10... c5 {[%clk 0:02:39]} 11. d4 {[%clk 0:02:52.5]}
11... Nd7 {[%clk 0:02:36.9]} 12. dxe5 {[%clk 0:02:49.8]} 12... dxe5 {[%clk
0:02:33.3]} 13. a4 {[%clk 0:02:40.2]} 13... Bb7 {[%clk 0:02:20.9]} 14. axb5
{[%clk 0:02:38.9]} 14... axb5 {[%clk 0:02:20.7]} 15. Nbd2 {[%clk 0:02:29.2]}
15... Nc6 {[%clk 0:02:05.5]} 16. Rxa8 {[%clk 0:02:25.7]} 16... Qxa8 {[%clk
0:02:06.4]} 17. Qe2 {[%clk 0:02:21.6]} 17... c4 {[%clk 0:02:02.4]} 18. Nf1
{[%clk 0:02:16.9]} 18... Nf6 {[%clk 0:01:52.6]} 19. Ng3 {[%clk 0:02:09.2]} 19...
Re8 {[%clk 0:01:48.3]} 20. Nf5 {[%clk 0:02:05.7]} 20... Bf8 {[%clk 0:01:47.1]}
21. Bg5 {[%clk 0:01:49.8]} 21... Nd7 {[%clk 0:01:45.3]} 22. Rd1 {[%clk
0:01:42.1]} 22... Nc5 {[%clk 0:01:42]} 23. Be3 {[%clk 0:01:33.6]} 23... Ne6
{[%clk 0:01:24.6]} 24. Ng5 {[%clk 0:01:09.7]} 24... Nxg5 {[%clk 0:01:19.7]} 25.
Bxg5 {[%clk 0:01:09.3]} 25... f6 {[%clk 0:01:15.8]} 26. Bh4 {[%clk 0:01:03.5]}
26... Nd8 {[%clk 0:01:05.4]} 27. Rd7 {[%clk 0:00:43.3]} 27... Bc8 {[%clk
0:00:41.7]} 28. Rd1 {[%clk 0:00:29.3]} 28... Ne6 {[%clk 0:00:38.3]} 29. Qg4
{[%clk 0:00:26.7]} 29... Kh8 {[%clk 0:00:34]} 30. Qh5 {[%clk 0:00:24]} 30... Bb7
{[%clk 0:00:20]} 31. Qf7 {[%clk 0:00:18.6]} 31... Qc8 {[%clk 0:00:14.3]} 32. Rd7
{[%clk 0:00:16]} 32... Nd8 {[%clk 0:00:11]} 33. Qxe8 {[%clk 0:00:14.6]} 33...
Bc6 {[%clk 0:00:09.7]} 34. Qxf8# {[%clk 0:00:14]} 1-0

[Event "Late-Titled-Tuesday-Blitz-August-29-2023"]
[Site "Chess.com"]
[Date "2023.08.29"]
[Round "7"]
[White "LastGladiator1"]
[Black "JoakimVonAnd"]
[Result "1-0"]
[WhiteElo "2908"]
[BlackElo "2737"]
[TimeControl "180+1"]
[EndTime "15:16:17 PDT"]
[Termination "LastGladiator1 won by resignation"]

1. f4 {[%clk 0:02:59.8]} 1... d5 {[%clk 0:03:00]} 2. Nf3 {[%clk 0:02:59.4]} 2...
Nf6 {[%clk 0:03:00.3]} 3. g3 {[%clk 0:02:55.4]} 3... Bf5 {[%clk 0:03:00.6]} 4.
Bg2 {[%clk 0:02:55.4]} 4... e6 {[%clk 0:03:01.2]} 5. O-O {[%clk 0:02:55]} 5...
Be7 {[%clk 0:03:01.6]} 6. d3 {[%clk 0:02:52.8]} 6... h6 {[%clk 0:03:02.2]} 7.
Qe1 {[%clk 0:02:53]} 7... O-O {[%clk 0:03:02.2]} 8. Nc3 {[%clk 0:02:50.1]} 8...
Bh7 {[%clk 0:03:02.2]} 9. e4 {[%clk 0:02:50]} 9... dxe4 {[%clk 0:03:02.4]} 10.
Nxe4 {[%clk 0:02:09.6]} 10... Nbd7 {[%clk 0:03:00]} 11. Qe2 {[%clk 0:02:05.2]}
11... Nc5 {[%clk 0:02:54.5]} 12. Nxc5 {[%clk 0:01:57.1]} 12... Bxc5+ {[%clk
0:02:54]} 13. Kh1 {[%clk 0:01:57.7]} 13... c6 {[%clk 0:02:36.5]} 14. a4 {[%clk
0:01:51.9]} 14... a5 {[%clk 0:02:33.4]} 15. d4 {[%clk 0:01:52]} 15... Be7 {[%clk
0:02:23.6]} 16. c3 {[%clk 0:01:50.1]} 16... Be4 {[%clk 0:02:22.1]} 17. Be3
{[%clk 0:01:44.6]} 17... Qd5 {[%clk 0:02:20.7]} 18. Bg1 {[%clk 0:01:44.7]} 18...
Rfd8 {[%clk 0:02:18.5]} 19. Rfd1 {[%clk 0:01:43.3]} 19... b5 {[%clk 0:01:58.6]}
20. axb5 {[%clk 0:01:40.1]} 20... cxb5 {[%clk 0:01:59.5]} 21. Re1 {[%clk
0:01:10.8]} 21... a4 {[%clk 0:01:57]} 22. Qd1 {[%clk 0:01:09.4]} 22... Rab8
{[%clk 0:01:49]} 23. Rxe4 {[%clk 0:01:04.9]} 23... Nxe4 {[%clk 0:01:41.6]} 24.
Nd2 {[%clk 0:01:05]} 24... f5 {[%clk 0:01:41.3]} 25. Nxe4 {[%clk 0:01:05.4]}
25... fxe4 {[%clk 0:01:40.4]} 26. Qe2 {[%clk 0:00:59.2]} 26... a3 {[%clk
0:01:34.6]} 27. bxa3 {[%clk 0:00:58.5]} 27... Qc4 {[%clk 0:01:33.1]} 28. Qxe4
{[%clk 0:00:58.5]} 28... Qxc3 {[%clk 0:01:27.8]} 29. Qxe6+ {[%clk 0:00:58.2]}
29... Kf8 {[%clk 0:01:27.7]} 30. Re1 {[%clk 0:00:52.6]} 30... Qxa3 {[%clk
0:01:13.2]} 31. d5 {[%clk 0:00:20.4]} 31... Qd6 {[%clk 0:01:12.4]} 32. Qf5+
{[%clk 0:00:20.2]} 32... Qf6 {[%clk 0:01:12.5]} 33. Qh7 {[%clk 0:00:19.9]} 33...
b4 {[%clk 0:00:56.5]} 34. Re5 {[%clk 0:00:18]} 34... b3 {[%clk 0:00:50.2]} 35.
Rf5 {[%clk 0:00:16.5]} 35... b2 {[%clk 0:00:50.7]} 36. Be4 {[%clk 0:00:15]}
36... Rb4 {[%clk 0:00:18.3]} 37. Rxf6+ {[%clk 0:00:12.8]} 37... Bxf6 {[%clk
0:00:19.2]} 38. Bc5+ {[%clk 0:00:12.9]} 1-0

[Event "Late-Titled-Tuesday-Blitz-August-29-2023"]
[Site "Chess.com"]
[Date "2023.08.29"]
[Round "7"]
[White "Garmendiarov"]
[Black "Fan_Of_Chucky"]
[Result "1-0"]
[WhiteElo "2345"]
[BlackElo "2501"]
[TimeControl "180+1"]
[EndTime "15:16:19 PDT"]
[Termination "Garmendiarov won on time"]

1. e4 {[%clk 0:03:00.9]} 1... c5 {[%clk 0:02:59.7]} 2. Nf3 {[%clk 0:03:00.8]}
2... a6 {[%clk 0:03:00.4]} 3. c3 {[%clk 0:03:00.2]} 3... d5 {[%clk 0:03:00.4]}
4. exd5 {[%clk 0:02:59.1]} 4... Qxd5 {[%clk 0:03:01.3]} 5. d4 {[%clk 0:02:56.2]}
5... Nf6 {[%clk 0:03:01.8]} 6. Nbd2 {[%clk 0:02:48.4]} 6... cxd4 {[%clk
0:02:58.4]} 7. Bc4 {[%clk 0:02:37.4]} 7... Qd6 {[%clk 0:02:47.3]} 8. Nxd4 {[%clk
0:02:28.7]} 8... b5 {[%clk 0:02:47.8]} 9. Be2 {[%clk 0:02:18.5]} 9... e6 {[%clk
0:02:48.1]} 10. Bf3 {[%clk 0:02:15.7]} 10... Ra7 {[%clk 0:02:46.7]} 11. O-O
{[%clk 0:02:14.5]} 11... Be7 {[%clk 0:02:42.3]} 12. Re1 {[%clk 0:02:09.2]} 12...
O-O {[%clk 0:02:40.7]} 13. Ne4 {[%clk 0:02:08.5]} 13... Nxe4 {[%clk 0:02:41.3]}
14. Bxe4 {[%clk 0:02:08.5]} 14... Bb7 {[%clk 0:02:34.7]} 15. Bxb7 {[%clk
0:02:00.1]} 15... Rxb7 {[%clk 0:02:35.6]} 16. Qf3 {[%clk 0:01:59.6]} 16... Rd7
{[%clk 0:02:16.1]} 17. Bf4 {[%clk 0:01:54.5]} 17... Qc5 {[%clk 0:02:12.2]} 18.
Re5 {[%clk 0:01:40.9]} 18... Qb6 {[%clk 0:01:54.6]} 19. Rh5 {[%clk 0:00:54.8]}
19... Bf6 {[%clk 0:01:32]} 20. Be5 {[%clk 0:00:47.2]} 20... Bxe5 {[%clk
0:01:27.1]} 21. Rxe5 {[%clk 0:00:48.1]} 21... Rfd8 {[%clk 0:01:14.4]} 22. Rae1
{[%clk 0:00:43.8]} 22... Rd6 {[%clk 0:01:03.6]} 23. h4 {[%clk 0:00:42.8]} 23...
Nd7 {[%clk 0:01:01.3]} 24. Rg5 {[%clk 0:00:38.3]} 24... Nf6 {[%clk 0:00:55.5]}
25. Qxf6 {[%clk 0:00:38.1]} 25... g6 {[%clk 0:00:49.2]} 26. h5 {[%clk
0:00:33.8]} 26... e5 {[%clk 0:00:41.7]} 27. Qe7 {[%clk 0:00:07.5]} 27... exd4
{[%clk 0:00:30.2]} 28. h6 {[%clk 0:00:08]} 28... Qb8 {[%clk 0:00:11.4]} 29. cxd4
{[%clk 0:00:06.7]} 29... Rxd4 {[%clk 0:00:07.4]} 30. Rge5 {[%clk 0:00:06.8]}
30... Rf8 {[%clk 0:00:07.7]} 31. Qf6 {[%clk 0:00:06.7]} 31... Qxe5 {[%clk
0:00:01.7]} 32. Qxe5 {[%clk 0:00:06.9]} 1-0

[Event "Late-Titled-Tuesday-Blitz-August-29-2023"]
[Site "Chess.com"]
[Date "2023.08.29"]
[Round "7"]
[White "MBA_CHESS_2021"]
[Black "YEIKO2017"]
[Result "0-1"]
[WhiteElo "2284"]
[BlackElo "2461"]
[TimeControl "180+1"]
[EndTime "15:16:19 PDT"]
[Termination "YEIKO2017 won on time"]

1. e4 {[%clk 0:03:00.9]} 1... c5 {[%clk 0:02:59.7]} 2. c4 {[%clk 0:02:58.1]}
2... Nc6 {[%clk 0:02:54.5]} 3. Nc3 {[%clk 0:02:57.1]} 3... g6 {[%clk 0:02:54.8]}
4. d3 {[%clk 0:02:57.1]} 4... Bg7 {[%clk 0:02:55.1]} 5. Be3 {[%clk 0:02:57.5]}
5... d6 {[%clk 0:02:53.1]} 6. f4 {[%clk 0:02:57.4]} 6... Nf6 {[%clk 0:02:51.5]}
7. Nf3 {[%clk 0:02:57.5]} 7... Bg4 {[%clk 0:02:51.6]} 8. Be2 {[%clk 0:02:56]}
8... Bxf3 {[%clk 0:02:51.7]} 9. Bxf3 {[%clk 0:02:55.9]} 9... O-O {[%clk
0:02:52.1]} 10. O-O {[%clk 0:02:55.7]} 10... Ne8 {[%clk 0:02:49.9]} 11. Rb1
{[%clk 0:02:51.1]} 11... Nc7 {[%clk 0:02:48]} 12. Ne2 {[%clk 0:02:49.8]} 12...
Ne6 {[%clk 0:02:47.6]} 13. a3 {[%clk 0:02:38]} 13... a5 {[%clk 0:02:45.7]} 14.
h3 {[%clk 0:02:33.5]} 14... Ned4 {[%clk 0:02:44.5]} 15. Kh1 {[%clk 0:02:21.7]}
15... a4 {[%clk 0:02:37]} 16. Nc3 {[%clk 0:02:18.5]} 16... Qa5 {[%clk
0:02:26.8]} 17. Bg4 {[%clk 0:02:02.3]} 17... e6 {[%clk 0:02:22.6]} 18. f5 {[%clk
0:01:54.9]} 18... Ne5 {[%clk 0:02:12.5]} 19. f6 {[%clk 0:01:48.4]} 19... Bh8
{[%clk 0:02:08]} 20. Bxd4 {[%clk 0:01:45.7]} 20... cxd4 {[%clk 0:02:06.4]} 21.
Nb5 {[%clk 0:01:44]} 21... Qb6 {[%clk 0:02:01.6]} 22. Qd2 {[%clk 0:01:23.7]}
22... Nd7 {[%clk 0:01:42.9]} 23. Qg5 {[%clk 0:01:22.9]} 23... Qc5 {[%clk
0:01:40.4]} 24. h4 {[%clk 0:01:15]} 24... Qe5 {[%clk 0:01:40]} 25. Rf3 {[%clk
0:01:07]} 25... Bxf6 {[%clk 0:01:34.4]} 26. Qd2 {[%clk 0:00:22.4]} 26... h5
{[%clk 0:01:27.7]} 27. Bh3 {[%clk 0:00:19.8]} 27... Bg7 {[%clk 0:01:27.9]} 28.
Rbf1 {[%clk 0:00:18.7]} 28... Nc5 {[%clk 0:01:24.5]} 29. g4 {[%clk 0:00:15.3]}
29... hxg4 {[%clk 0:01:23.8]} 30. Bxg4 {[%clk 0:00:15.3]} 30... f5 {[%clk
0:01:21.1]} 31. exf5 {[%clk 0:00:13.1]} 31... exf5 {[%clk 0:01:21.4]} 32. Bh3
{[%clk 0:00:13.1]} 32... Rae8 {[%clk 0:01:19.9]} 33. Bg2 {[%clk 0:00:12.1]}
33... Qe2 {[%clk 0:01:10.5]} 34. R1f2 {[%clk 0:00:11.1]} 34... Qxd2 {[%clk
0:01:09.5]} 35. Rxd2 {[%clk 0:00:11.3]} 35... Be5 {[%clk 0:01:04.3]} 36. Nc7
{[%clk 0:00:08.5]} 36... Rc8 {[%clk 0:00:57.5]} 37. Nb5 {[%clk 0:00:07.6]} 37...
Kg7 {[%clk 0:00:56.6]} 38. Rf1 {[%clk 0:00:07.4]} 38... Rh8 {[%clk 0:00:56.3]}
39. Bxb7 {[%clk 0:00:07.1]} 39... Nxb7 {[%clk 0:00:54.9]} 40. Rg2 {[%clk
0:00:05.3]} 40... Rxh4+ {[%clk 0:00:54.2]} 41. Kg1 {[%clk 0:00:05.8]} 41... Rch8
{[%clk 0:00:53.4]} 42. Kf2 {[%clk 0:00:05.3]} 42... Rf4+ {[%clk 0:00:52.5]} 43.
Ke2 {[%clk 0:00:05.4]} 43... Rxf1 {[%clk 0:00:53]} 44. Kxf1 {[%clk 0:00:06]}
44... Rh1+ {[%clk 0:00:52.3]} 45. Ke2 {[%clk 0:00:06]} 45... Rb1 {[%clk
0:00:52]} 46. Kf3 {[%clk 0:00:05.3]} 46... Kf7 {[%clk 0:00:50.9]} 47. Nc7 {[%clk
0:00:04.6]} 47... Nc5 {[%clk 0:00:48.3]} 48. Nd5 {[%clk 0:00:04]} 48... Nxd3
{[%clk 0:00:48.1]} 49. Rd2 {[%clk 0:00:02]} 49... Nc5 {[%clk 0:00:46.3]} 0-1

[Event "Late-Titled-Tuesday-Blitz-August-29-2023"]
[Site "Chess.com"]
[Date "2023.08.29"]
[Round "7"]
[White "artin10862"]
[Black "FairChess_on_YouTube"]
[Result "1-0"]
[WhiteElo "2880"]
[BlackElo "3062"]
[TimeControl "180+1"]
[EndTime "15:16:21 PDT"]
[Termination "artin10862 won on time"]

1. Nf3 {[%clk 0:03:00.9]} 1... Nf6 {[%clk 0:02:59.3]} 2. c4 {[%clk 0:03:00.8]}
2... e6 {[%clk 0:02:59.2]} 3. Nc3 {[%clk 0:03:01.4]} 3... d5 {[%clk 0:02:59]} 4.
d4 {[%clk 0:03:02.1]} 4... Nbd7 {[%clk 0:02:58.3]} 5. cxd5 {[%clk 0:03:00.7]}
5... exd5 {[%clk 0:02:58.1]} 6. Bg5 {[%clk 0:03:01.4]} 6... c6 {[%clk
0:02:58.2]} 7. e3 {[%clk 0:03:00.3]} 7... h6 {[%clk 0:02:58.5]} 8. Bh4 {[%clk
0:02:59.6]} 8... g5 {[%clk 0:02:59.1]} 9. Bg3 {[%clk 0:02:59.5]} 9... Nh5 {[%clk
0:02:59.7]} 10. Bd3 {[%clk 0:02:55.3]} 10... Nxg3 {[%clk 0:02:58.5]} 11. hxg3
{[%clk 0:02:55.3]} 11... Bg7 {[%clk 0:02:59.1]} 12. Qc2 {[%clk 0:02:50.4]} 12...
Nb6 {[%clk 0:02:56.9]} 13. b4 {[%clk 0:02:35.3]} 13... Qe7 {[%clk 0:02:55]} 14.
Rb1 {[%clk 0:02:21.9]} 14... g4 {[%clk 0:02:54.5]} 15. Nh4 {[%clk 0:02:14.6]}
15... Bxd4 {[%clk 0:02:54.4]} 16. O-O {[%clk 0:02:14.9]} 16... Bf6 {[%clk
0:02:51.5]} 17. Nf5 {[%clk 0:02:14.3]} 17... Bxf5 {[%clk 0:02:51.1]} 18. Bxf5
{[%clk 0:02:15.2]} 18... h5 {[%clk 0:02:50.5]} 19. e4 {[%clk 0:02:11.9]} 19...
d4 {[%clk 0:02:44.5]} 20. Ne2 {[%clk 0:02:10.2]} 20... Be5 {[%clk 0:02:36.6]}
21. Nf4 {[%clk 0:02:06.5]} 21... Rd8 {[%clk 0:02:30.4]} 22. Nd3 {[%clk
0:02:02.7]} 22... h4 {[%clk 0:02:27.9]} 23. Bxg4 {[%clk 0:01:58.1]} 23... hxg3
{[%clk 0:02:26.4]} 24. f4 {[%clk 0:01:58.3]} 24... Bg7 {[%clk 0:02:20.4]} 25.
Bh3 {[%clk 0:01:46.3]} 25... Kf8 {[%clk 0:02:10]} 26. Rbe1 {[%clk 0:01:42.9]}
26... Rd6 {[%clk 0:02:05.7]} 27. Rf3 {[%clk 0:01:38.7]} 27... Rg6 {[%clk
0:02:00.2]} 28. e5 {[%clk 0:01:35]} 28... Rgh6 {[%clk 0:01:47.2]} 29. Rxg3
{[%clk 0:01:29.2]} 29... Nd5 {[%clk 0:01:45.8]} 30. Qc4 {[%clk 0:01:12.5]} 30...
Rxh3 {[%clk 0:01:19.4]} 31. gxh3 {[%clk 0:00:56.1]} 31... Qh4 {[%clk 0:01:19.4]}
32. Kh2 {[%clk 0:00:46.6]} 32... Nxf4 {[%clk 0:01:10.5]} 33. Nxf4 {[%clk
0:00:35.4]} 33... Qxf4 {[%clk 0:01:11.4]} 34. Rf1 {[%clk 0:00:35.5]} 34... Qd2+
{[%clk 0:01:08.8]} 35. Kh1 {[%clk 0:00:30.7]} 35... f6 {[%clk 0:01:04.2]} 36.
exf6 {[%clk 0:00:24.1]} 1-0

[Event "Late-Titled-Tuesday-Blitz-August-29-2023"]
[Site "Chess.com"]
[Date "2023.08.29"]
[Round "7"]
[White "Matibar"]
[Black "Orest_Vovk"]
[Result "0-1"]
[WhiteElo "2818"]
[BlackElo "2610"]
[TimeControl "180+1"]
[EndTime "15:16:21 PDT"]
[Termination "Orest_Vovk won on time"]

1. c4 {[%clk 0:03:00.9]} 1... g6 {[%clk 0:02:57.6]} 2. h4 {[%clk 0:02:57.8]}
2... Nf6 {[%clk 0:02:57.7]} 3. d4 {[%clk 0:02:56.7]} 3... Bg7 {[%clk 0:02:54.7]}
4. Nc3 {[%clk 0:02:54.2]} 4... d6 {[%clk 0:02:55]} 5. e4 {[%clk 0:02:51.4]} 5...
a5 {[%clk 0:02:54.2]} 6. Be2 {[%clk 0:02:47.6]} 6... Na6 {[%clk 0:02:51.8]} 7.
h5 {[%clk 0:02:45.9]} 7... Nxh5 {[%clk 0:02:44.2]} 8. Bxh5 {[%clk 0:02:42.7]}
8... gxh5 {[%clk 0:02:45.1]} 9. Rxh5 {[%clk 0:02:41.5]} 9... c5 {[%clk
0:02:39.7]} 10. Be3 {[%clk 0:02:26.5]} 10... b6 {[%clk 0:02:17.7]} 11. f3 {[%clk
0:02:19.1]} 11... Nb4 {[%clk 0:02:05.4]} 12. Nge2 {[%clk 0:02:16.7]} 12... Ba6
{[%clk 0:01:56.1]} 13. b3 {[%clk 0:02:07]} 13... Nc6 {[%clk 0:01:54]} 14. d5
{[%clk 0:02:04.5]} 14... Ne5 {[%clk 0:01:49.4]} 15. a4 {[%clk 0:01:54.2]} 15...
Qd7 {[%clk 0:01:31.6]} 16. Bh6 {[%clk 0:01:52.4]} 16... Bxh6 {[%clk 0:01:16.5]}
17. Rxh6 {[%clk 0:01:52.5]} 17... O-O-O {[%clk 0:01:17.1]} 18. Qd2 {[%clk
0:01:48]} 18... Rdg8 {[%clk 0:01:15.7]} 19. Kf2 {[%clk 0:01:31.5]} 19... Rg6
{[%clk 0:01:11.8]} 20. Rah1 {[%clk 0:01:30.3]} 20... Rhg8 {[%clk 0:01:09.2]} 21.
R1h2 {[%clk 0:01:21]} 21... f5 {[%clk 0:00:59.1]} 22. Rxh7 {[%clk 0:01:13.2]}
22... fxe4 {[%clk 0:00:58.1]} 23. Nxe4 {[%clk 0:01:13]} 23... Qf5 {[%clk
0:00:54.5]} 24. Nf4 {[%clk 0:00:28.2]} 24... Rxg2+ {[%clk 0:00:43.8]} 25. Nxg2
{[%clk 0:00:12.4]} 25... Qxf3+ {[%clk 0:00:43.5]} 26. Kg1 {[%clk 0:00:11.9]}
26... Qxe4 {[%clk 0:00:42.4]} 27. Kh1 {[%clk 0:00:04.6]} 27... Nf3 {[%clk
0:00:35.8]} 28. Qd1 {[%clk 0:00:03.2]} 28... Nxh2 {[%clk 0:00:32.4]} 29. Rxh2
{[%clk 0:00:04.1]} 29... Kd8 {[%clk 0:00:30.1]} 30. Qe1 {[%clk 0:00:04.5]} 30...
Qxe1+ {[%clk 0:00:25.3]} 31. Nxe1 {[%clk 0:00:05.4]} 31... Rg3 {[%clk
0:00:21.8]} 32. Rb2 {[%clk 0:00:03.7]} 32... Bc8 {[%clk 0:00:19.6]} 33. Kh2
{[%clk 0:00:04.1]} 33... Rc3 {[%clk 0:00:18.8]} 34. Kg2 {[%clk 0:00:04.3]} 34...
Bg4 {[%clk 0:00:17.4]} 35. Kf2 {[%clk 0:00:04.4]} 35... Bd1 {[%clk 0:00:17.2]}
36. Rd2 {[%clk 0:00:01.4]} 36... Bxb3 {[%clk 0:00:16.2]} 37. Nd3 {[%clk
0:00:01.4]} 37... Rc2 {[%clk 0:00:14.6]} 0-1